fUST/lending_fUST_20250430
["ID","MTS","AMOUNT","RATE_DAILY","PERIOD"]
[359338708,1745942411415,630.866,0.00018,2]
[359338773,1745943032326,-163.048207,0.00027397,2]
[359338775,1745943032336,-301.8777938,0.00030292,2]
[359338777,1745943032346,-250.0,0.00031284,2]
[359338778,1745943032356,-840.73483787,0.00031478,2]
[359338779,1745943032366,-185.805388,0.00031484,120]
[359338780,1745943032376,-302.2256412,0.00031484,2]
[359338782,1745943032386,-1200.0,0.00031899,3]
[359338783,1745943032396,-202.52659048,0.000319,10]
[359338785,1745943032407,-400.0,0.000319,3]
[359338786,1745943032416,-200.0,0.000319,3]
[359338787,1745943032426,-400.0,0.000319,2]
[359338788,1745943032436,-5000.0,0.00031901,2]
[359338789,1745943032445,-5000.0,0.00031901,2]
[359338790,1745943032455,-5000.0,0.00031901,2]
[359338791,1745943032464,-5000.0,0.00031901,2]
[359338792,1745943032474,-5000.0,0.00031901,2]
[359338793,1745943032484,-5000.0,0.00031901,2]
[359338794,1745943032493,-202.52659023,0.00032233,10]
[359338795,1745943032502,-1748.15118329,0.00032449,2]
[359338796,1745943032515,-3251.84881671,0.00032449,2]
[359338797,1745943032524,-202.52659023,0.00032567,10]
[359338798,1745943032534,-202.52659023,0.000329,10]
[359338799,1745943032543,-5000.0,0.00032997,2]
[359338800,1745943032553,-202.52659023,0.00033233,11]
[359338801,1745943032563,-403.0,0.00033351,2]
[359338802,1745943032572,-160.0,0.00033449,2]
[359338803,1745943032581,-421.1409203,0.00033449,2]
[359338804,1745943032591,-160.0,0.00033449,2]
[359338805,1745943032601,-5000.0,0.00033545,2]
[359338806,1745943032611,-202.52659023,0.00033567,11]
[359338807,1745943032621,-58.64331923,0.00033835,4]
[359338808,1745943032642,-313.81519027,0.00033835,4]
[359338809,1745943032651,-202.52659023,0.000339,11]
[359338810,1745943032661,-5000.0,0.00034093,2]
[359338811,1745943032670,-202.52659023,0.00034233,11]
[359338812,1745943032680,-294.0,0.00034313,3]
[359338813,1745943032690,-202.52659023,0.00034567,12]
[359338814,1745943032699,-5000.0,0.00034641,2]
[359338815,1745943032709,-2866.41225603,0.000349,10]
[359338816,1745943032725,-7254.28774397,0.000349,10]
[359338817,1745943032733,-202.52659023,0.000349,12]
[359338818,1745943032742,-3157.0,0.00035,30]
[359338819,1745943032751,-153.0,0.00035068,30]
[359338820,1745943032759,-500.0,0.0003511,10]
[359338821,1745943032768,-500.0,0.0003511,10]
[359338822,1745943032778,-500.0,0.0003511,10]
[359338823,1745943032788,-500.0,0.0003511,10]
[359338824,1745943032798,-500.0,0.0003511,10]
[359338825,1745943032808,-500.0,0.0003511,10]
[359338826,1745943032817,-500.0,0.0003511,10]
[359338827,1745943032827,-500.0,0.0003511,10]
[359338828,1745943032837,-500.0,0.0003511,10]
[359338829,1745943032847,-160.0,0.00035122,2]
[359338830,1745943032857,-150.091,0.00035168,2]
[359338831,1745943032866,-150.0,0.00035168,2]
[359338832,1745943032876,-150.0,0.00035168,2]
[359338833,1745943032886,-320.0,0.00035168,2]
[359338834,1745943032896,-5000.0,0.00035189,2]
[359338835,1745943032906,-202.52659023,0.00035233,12]
[359338836,1745943032918,-243.8117639,0.00035267,2]
[359338837,1745943032927,-479.30034083,0.00035273,5]
[359338838,1745943032937,-500.0,0.00035273,5]
[359338839,1745943032946,-500.0,0.00035273,5]
[359338840,1745943032957,-500.0,0.00035273,5]
[359338841,1745943032967,-439.41392354,0.00035273,5]
[359338842,1745943032981,-62.01980855,0.00035273,5]
[359338843,1745943032992,-170.47,0.0003528,3]
[359338844,1745943033003,-937.63,0.0003528,3]
[359338845,1745943033013,-468.82,0.0003528,3]
[359338846,1745943033022,-27.51019145,0.0003528,2]
[359338872,1745943038456,-234.41,0.0003528,3]
[359338874,1745943038466,-1096.35476419,0.0003528,2]
[359338875,1745943038476,-591.95098794,0.00035289,7]
[359338877,1745943038485,-500.0,0.00035289,7]
[359338879,1745943038495,-93.68325379,0.00035289,7]
[359338915,1745943040828,-283.23545759,0.00035289,7]
[359338916,1745943040838,-376.17435506,0.00035289,7]
[359338917,1745943040848,-827.05150107,0.0003529,2]
[359338918,1745943040857,-1239.04032403,0.0003529,3]
[359338919,1745943040867,-165.23618391,0.0003529,2]
[359338920,1745943040876,-6383.86217834,0.0003529,2]
[359339359,1745943046534,-703.23,0.0003528,3]
[359339361,1745943046543,-6207.81018644,0.0003529,2]
[359339363,1745943046555,-1819.95636234,0.0003529,2]
[359339374,1745943046648,-20917.27745456,0.0003529,2]
[359339636,1745943413222,-352.661241,0.00027097,2]
[359339637,1745943413244,-3540.338759,0.00027197,2]
[359339638,1745943466041,-159.9897165,0.00027197,2]
[359339639,1745943466065,-2495.95170044,0.00027197,2]
[359339640,1745943466088,-1000.0,0.00027297,2]
[359339641,1745943466110,-159.9897165,0.00029499,2]
[359339642,1745943466133,-937.95,0.00030181,2]
[359339643,1745943466155,-421.1409203,0.00030498,2]
[359339644,1745943466177,-840.73483787,0.00030498,2]
[359339645,1745943466200,-160.0,0.00030498,2]
[359339646,1745943466224,-208.80469954,0.000309,9]
[359339647,1745943466247,-208.80469945,0.000314,9]
[359339648,1745943466269,-1023.53400314,0.00031801,2]
[359339649,1745943466290,-159.9897165,0.00031801,2]
[359339650,1745943466310,-160.0,0.000319,3]
[359339651,1745943466338,-208.80469945,0.000319,10]
[359339652,1745943466359,-5000.0,0.00031901,2]
[359339653,1745943466380,-5000.0,0.00031901,2]
[359339654,1745943466402,-5000.0,0.00031901,2]
[359339655,1745943466423,-5000.0,0.00031901,2]
[359339656,1745943466445,-5000.0,0.00031901,2]
[359339657,1745943466468,-5000.0,0.00031901,2]
[359339658,1745943466491,-4900.0,0.00031901,2]
[359339659,1745943466512,-500.0,0.00032,5]
[359339660,1745943466534,-504.68052444,0.00032,3]
[359339661,1745943466555,-300.0,0.00032,5]
[359339662,1745943466576,-500.0,0.00032,5]
[359339663,1745943466597,-500.0,0.00032,5]
[359339664,1745943466619,-500.0,0.00032,5]
[359339665,1745943466640,-500.0,0.00032,5]
[359339666,1745943466664,-208.80469945,0.000324,10]
[359339667,1745943466687,-5000.0,0.00032449,2]
[359339668,1745943466711,-208.80469945,0.000329,10]
[359339669,1745943466733,-1023.53400314,0.00032981,2]
[359339670,1745943466754,-5000.0,0.00032997,2]
[359339671,1745943578086,444.18136383,0.000325,120]
[359339709,1745944232322,-937.95,0.00027,2]
[359339711,1745944232333,-5988.86004207,0.00027,2]
[359339716,1745944232375,-14381.43742543,0.00027,2]
[359339717,1745944232385,-163.048207,0.00027397,2]
[359339719,1745944232394,-210.594433,0.000279,7]
[359339721,1745944232404,-210.59443298,0.00028665,8]
[359339723,1745944232412,-210.59443298,0.00029429,8]
[359339724,1745944232422,-210.59443298,0.00030194,9]
[359339726,1745944232431,-210.59443298,0.00030959,9]
[359339729,1745944232440,-210.59443298,0.00031724,10]
[359339732,1745944232450,-421.28334683,0.00031894,2]
[359339735,1745944232459,-160.0,0.00031894,2]
[359339737,1745944232469,-840.73483787,0.00031899,2]
[359339741,1745944232482,-5000.0,0.00031901,2]
[359339744,1745944232492,-5000.0,0.00031901,2]
[359339747,1745944232500,-5000.0,0.00031901,2]
[359339750,1745944232509,-5000.0,0.00031901,2]
[359339752,1745944232518,-5000.0,0.00031901,2]
[359339754,1745944232527,-3892.87031555,0.00031901,2]
[359339756,1745944232536,-210.59443298,0.00032488,10]
[359339758,1745944232546,-40152.81863617,0.000325,120]
[359339760,1745944232555,-210.59443298,0.00033253,11]
[359339762,1745944232564,-31111.81760252,0.0003339,2]
[359339764,1745944232573,-1000.0,0.00033391,2]
[359339766,1745944232583,-1032.74818273,0.00033487,4]
[359339768,1745944232592,-297.9668076,0.00033835,4]
[359339770,1745944232601,-153.0,0.00033973,30]
[359339771,1745944232611,-210.59443298,0.00034018,11]
[359339772,1745944232620,-153.0,0.00034247,30]
[359339773,1745944232629,-210.59443298,0.00034782,12]
[359339774,1745944232639,-709.01,0.0003499,3]
[359339775,1745944232648,-354.5,0.0003499,3]
[359339776,1745944232657,-47775.75562356,0.00035,30]
[359339777,1745944232666,-554.70705548,0.00035,120]
[359339778,1745944232675,-151.0,0.00035,14]
[359339779,1745944232684,-151.0,0.00035,14]
[359339780,1745944232694,-151.0,0.00035,14]
[359339781,1745944232703,-151.0,0.00035,14]
[359339782,1745944232712,-151.0,0.00035,14]
[359339783,1745944232721,-186.583032,0.00035,14]
[359339784,1745944232730,-151.0,0.00035,14]
[359339785,1745944232739,-151.0,0.00035,14]
[359339786,1745944232748,-151.0,0.00035,14]
[359339787,1745944232757,-403.0,0.0003508,2]
[359339788,1745944232767,-151.0,0.0003529,14]
[359339789,1745944232776,-151.0,0.0003529,14]
[359339790,1745944232785,-289.68069636,0.00035344,2]
[359339791,1745944232794,-500.0,0.0003539,10]
[359339792,1745944232803,-183.39676239,0.0003539,10]
[359339793,1745944232815,-316.60323761,0.0003539,10]
[359339794,1745944232824,-160.0,0.00035393,2]
[359339795,1745944232833,-160.0,0.00035393,2]
[359339796,1745944232843,-2500.0,0.000354,7]
[359339797,1745944232852,-151.0,0.00035414,3]
[359339798,1745944232863,-207.4,0.00035414,3]
[359339799,1745944232872,-1563.36228869,0.00035415,2]
[359339800,1745944232881,-2008.0,0.00035416,60]
[359339801,1745944232891,-500.0,0.00035443,7]
[359339802,1745944232900,-335.14078868,0.00035443,7]
[359339803,1745944232910,-263.32204854,0.00035443,7]
[359339804,1745944232919,-575.54246812,0.00035443,7]
[359339805,1745944232928,-743.21923124,0.00035444,2]
[359339806,1745944232938,-619.52016202,0.00035444,3]
[359339807,1745944232947,-14760.6112357,0.00035444,2]
[359339829,1745944238362,-500.0,0.00032499,2]
[359339830,1745944238371,-180.5889704,0.00032499,2]
[359339831,1745944238416,-319.4110296,0.00032499,2]
[359339832,1745944238426,-319.40220199,0.00032499,2]
[359339850,1745944240803,-180.59779801,0.00032499,2]
[359339852,1745944240812,-202.51420199,0.00032499,2]
[359339898,1745944246953,-7.0369535,0.0003538,3]
[359339899,1745944246965,-170.2130465,0.0003538,3]
[359339900,1745944246975,-2053.9969535,0.00035444,2]
[359339964,1745945437012,-160.0,0.0002518,2]
[359339966,1745945437022,-2066.0,0.00025204,2]
[359339968,1745945437031,-313.35099139,0.00028,10]
[359339970,1745945437040,-839.97013334,0.00030613,2]
[359339972,1745945437049,-160.0,0.00030613,2]
[359339974,1745945437058,-212.88050833,0.000309,9]
[359339976,1745945437067,-541.0,0.00031141,3]
[359339978,1745945437076,-400.0,0.00031142,3]
[359339980,1745945437085,-380.0,0.00031143,2]
[359339982,1745945437095,-632.7417946,0.00031143,2]
[359339985,1745945437104,-453.0139531,0.00031143,2]
[359339988,1745945437113,-421.28334683,0.00031784,2]
[359339991,1745945437122,-160.0,0.00031784,2]
[359339994,1745945437131,-1000.0,0.00031796,2]
[359339996,1745945437140,-212.88050827,0.000319,10]
[359339998,1745945437149,-5089.6376447,0.0003214,8]
[359340000,1745945437158,-955.07053019,0.00032776,2]
[359340002,1745945437167,-231.74455712,0.00032776,2]
[359340005,1745945437178,-172.51398493,0.00032776,2]
[359340008,1745945437187,-626.15333244,0.00032866,2]
[359340010,1745945437197,-589.56,0.00032866,3]
[359340012,1745945437207,-294.78,0.00032866,3]
[359340014,1745945437216,-884.37,0.00032866,3]
[359340016,1745945437226,-500.0,0.00032873,5]
[359340018,1745945437235,-400.08867886,0.00032873,5]
[359340020,1745945437245,-500.0,0.00032873,5]
[359340022,1745945437254,-144.0758797,0.00032873,5]
[359340023,1745945437269,-371.36268983,0.00032873,5]
[359340024,1745945437278,-500.0,0.00032873,5]
[359340025,1745945437287,-500.0,0.00032873,5]
[359340026,1745945437296,-500.0,0.00032873,5]
[359340027,1745945437305,-500.0,0.00032873,5]
[359340028,1745945437314,-500.0,0.00032873,5]
[359340029,1745945437322,-500.0,0.00032873,5]
[359340030,1745945437330,-500.0,0.00032873,5]
[359340031,1745945437339,-500.0,0.00032873,5]
[359340032,1745945437349,-500.0,0.00032873,5]
[359340033,1745945437358,-500.0,0.00032873,5]
[359340034,1745945437367,-500.0,0.00032873,5]
[359340035,1745945437377,-500.0,0.00032873,5]
[359340036,1745945437385,-500.0,0.00032873,5]
[359340037,1745945437394,-501.75562334,0.00032873,5]
[359340038,1745945437403,-500.0,0.00032873,2]
[359340039,1745945437412,-311.48291134,0.00032873,5]
[359340040,1745945437421,-500.0,0.00032873,5]
[359340041,1745945437430,-500.0,0.00032873,5]
[359340042,1745945437439,-500.0,0.00032873,5]
[359340043,1745945437448,-534.32543398,0.00032875,2]
[359340045,1745945437457,-402.87972768,0.00032875,2]
[359340047,1745945437466,-234.59855208,0.00032875,2]
[359340049,1745945437475,-530.14680719,0.00032875,2]
[359340051,1745945437484,-500.0,0.00032875,2]
[359340053,1745945437494,-500.0,0.00032875,2]
[359340055,1745945437503,-635.97439648,0.00032875,2]
[359340057,1745945437513,-371.60961562,0.00032876,2]
[359340059,1745945437522,-309.76008101,0.00032876,3]
[359340072,1745945437713,-250.35,0.00032876,3]
[359340073,1745945437723,-400.0,0.00032876,3]
[359340074,1745945437734,-400.0,0.00032876,3]
[359340075,1745945437744,-400.0,0.00032876,3]
[359340076,1745945437757,-400.0,0.00032876,3]
[359340077,1745945437767,-502.6053553,0.00032876,3]
[359340078,1745945437777,-400.0,0.00032876,3]
[359340079,1745945437786,-400.0,0.00032876,3]
[359340080,1745945437798,-508.00080123,0.00032876,3]
[359340081,1745945437807,-400.0,0.00032876,3]
[359340082,1745945437817,-152.80930124,0.00032876,3]
[359340083,1745945437826,-400.0,0.00032876,3]
[359340084,1745945437837,-255.28067953,0.00032876,3]
[359340085,1745945437847,-400.0,0.00032876,3]
[359340086,1745945437857,-400.0,0.00032876,3]
[359340087,1745945437867,-400.0,0.00032876,3]
[359340088,1745945437877,-400.0,0.00032876,3]
[359340089,1745945437886,-400.0,0.00032876,3]
[359340090,1745945437896,-400.0,0.00032876,3]
[359340091,1745945437905,-400.0,0.00032876,3]
[359340092,1745945437914,-211.41433231,0.00032876,3]
[359340093,1745945437929,-400.0,0.00032876,3]
[359340094,1745945437939,-400.0,0.00032876,3]
[359340095,1745945437948,-400.0,0.00032876,3]
[359340096,1745945437958,-510.35179285,0.00032876,3]
[359340097,1745945437967,-400.0,0.00032876,3]
[359340098,1745945437976,-400.0,0.00032876,3]
[359340099,1745945437985,-350.01408474,0.00032876,3]
[359340129,1745945438601,-149.98591526,0.00032876,3]
[359340131,1745945438611,-511.88245525,0.00032876,3]
[359340133,1745945438621,-400.0,0.00032876,3]
[359340136,1745945438632,-400.0,0.00032876,3]
[359340138,1745945438642,-400.0,0.00032876,3]
[359340140,1745945438652,-500.82081359,0.00032876,3]
[359340142,1745945438661,-400.0,0.00032876,3]
[359340144,1745945438671,-400.0,0.00032876,3]
[359340146,1745945438681,-400.0,0.00032876,3]
[359340148,1745945438690,-400.0,0.00032876,3]
[359340150,1745945438700,-500.0,0.00032876,3]
[359340152,1745945438710,-400.0,0.00032876,3]
[359340155,1745945438719,-500.0,0.00032876,3]
[359340158,1745945438729,-400.0,0.00032876,3]
[359340160,1745945438738,-400.0,0.00032876,3]
[359340161,1745945438748,-500.0,0.00032876,3]
[359340163,1745945438761,-400.0,0.00032876,3]
[359340165,1745945438770,-400.0,0.00032876,3]
[359340167,1745945438779,-506.43,0.00032876,3]
[359340169,1745945438789,-400.0,0.00032876,3]
[359340171,1745945438799,-259.31432095,0.00032876,3]
[359340173,1745945438807,-501.3577796,0.00032876,3]
[359340175,1745945438818,-172.34542243,0.00032876,3]
[359340177,1745945438827,-400.0,0.00032876,3]
[359340179,1745945438837,-151.0,0.00032876,7]
[359340181,1745945438846,-400.0,0.00032876,3]
[359340183,1745945438856,-85.30837003,0.00032876,3]
[359340186,1745945438869,-314.69162997,0.00032876,3]
[359340188,1745945438878,-400.0,0.00032876,3]
[359340190,1745945438887,-840.22503485,0.00032876,3]
[359340192,1745945438896,-500.0,0.00032876,3]
[359340194,1745945438905,-500.0,0.00032876,3]
[359340196,1745945438913,-400.0,0.00032876,3]
[359340198,1745945438923,-252.01631105,0.00032876,3]
[359340577,1745945443742,-500.0,0.00032875,2]
[359340579,1745945443753,-114.2733201,0.00032876,3]
[359340581,1745945443768,-133.71036885,0.00032876,3]
[359340583,1745945443778,-400.0,0.00032876,3]
[359340585,1745945443787,-149.49316498,0.00032876,3]
[359340587,1745945443800,-350.50683502,0.00032876,3]
[359340589,1745945443810,-400.0,0.00032876,3]
[359340593,1745945443820,-305.46763115,0.00032876,3]
[359340597,1745945443840,-194.53236885,0.00032876,3]
[359340600,1745945443850,-400.0,0.00032876,3]
[359340602,1745945443859,-501.02764383,0.00032876,3]
[359340605,1745945443869,-500.0,0.00032876,3]
[359340607,1745945443879,-400.0,0.00032876,3]
[359340609,1745945443887,-400.0,0.00032876,3]
[359340611,1745945443897,-400.0,0.00032876,3]
[359340613,1745945443906,-400.0,0.00032876,3]
[359340615,1745945443916,-400.0,0.00032876,3]
[359340617,1745945443926,-400.0,0.00032876,3]
[359340619,1745945443935,-400.0,0.00032876,3]
[359340621,1745945443944,-505.63193085,0.00032876,3]
[359340623,1745945443954,-525.12773218,0.00032876,3]
[359340624,1745945443963,-500.0,0.00032876,3]
[359340626,1745945443973,-459.1184224,0.00032876,3]
[359340628,1745945443982,-500.0,0.00032876,3]
[359340630,1745945443991,-500.0,0.00032876,3]
[359340632,1745945444000,-400.0,0.00032876,3]
[359340634,1745945444009,-521.41,0.00032876,3]
[359340636,1745945444018,-500.0,0.00032876,3]
[359340638,1745945444027,-500.0,0.00032876,3]
[359340640,1745945444036,-400.0,0.00032876,3]
[359340642,1745945444045,-400.0,0.00032876,3]
[359340644,1745945444054,-500.0,0.00032876,3]
[359340646,1745945444063,-500.0,0.00032876,3]
[359340648,1745945444072,-500.0,0.00032876,3]
[359340650,1745945444081,-400.0,0.00032876,2]
[359340652,1745945444090,-500.0,0.00032876,3]
[359340654,1745945444099,-500.0,0.00032876,3]
[359340656,1745945444109,-300.0,0.00032876,3]
[359340658,1745945444118,-400.0,0.00032876,3]
[359340660,1745945444127,-1217.31,0.00032876,3]
[359340662,1745945444136,-400.0,0.00032876,3]
[359340664,1745945444145,-400.0,0.00032876,3]
[359340666,1745945444154,-400.0,0.00032876,3]
[359340668,1745945444164,-506.9294292,0.00032876,3]
[359340670,1745945444175,-400.0,0.00032876,3]
[359340672,1745945444184,-310.69512936,0.00032876,3]
[359340674,1745945444193,-400.0,0.00032876,3]
[359340676,1745945444202,-502.38133378,0.00032876,3]
[359340678,1745945444211,-300.0,0.00032876,3]
[359340680,1745945444220,-500.0,0.00032876,3]
[359340682,1745945444229,-400.0,0.00032876,3]
[359340683,1745945444238,-400.0,0.00032876,3]
[359340685,1745945444247,-151.0,0.00032876,7]
[359340687,1745945444257,-151.0,0.00032876,7]
[359340690,1745945444267,-300.0,0.00032876,3]
[359340692,1745945444277,-400.0,0.00032876,3]
[359340694,1745945444286,-935.63,0.00032876,3]
[359340696,1745945444295,-400.0,0.00032876,3]
[359340698,1745945444304,-400.0,0.00032876,3]
[359340700,1745945444313,-400.0,0.00032876,3]
[359340702,1745945444322,-500.0,0.00032876,3]
[359340703,1745945444331,-500.0,0.00032876,3]
[359340705,1745945444341,-400.0,0.00032876,3]
[359340707,1745945444350,-400.0,0.00032876,3]
[359340709,1745945444359,-501.01086386,0.00032876,3]
[359340711,1745945444368,-500.0,0.00032876,3]
[359340713,1745945444378,-555.45,0.00032876,3]
[359340715,1745945444387,-500.0,0.00032876,3]
[359340717,1745945444396,-400.0,0.00032876,3]
[359340719,1745945444405,-500.62427233,0.00032876,3]
[359340721,1745945444414,-500.86131784,0.00032876,3]
[359340723,1745945444424,-500.0,0.00032876,3]
[359340724,1745945444433,-400.0,0.00032876,3]
[359340725,1745945444442,-500.0,0.00032876,3]
[359340726,1745945444451,-561.8,0.00032876,3]
[359340727,1745945444460,-400.0,0.00032876,3]
[359340728,1745945444469,-400.0,0.00032876,3]
[359340729,1745945444478,-500.0,0.00032876,3]
[359340730,1745945444488,-1471.37,0.00032876,3]
[359340731,1745945444497,-500.0,0.00032876,3]
[359340732,1745945444506,-210.88164109,0.00032876,3]
[359340733,1745945444516,-400.0,0.00032876,3]
[359340734,1745945444525,-500.0,0.00032876,3]
[359340735,1745945444534,-500.0,0.00032876,3]
[359340736,1745945444542,-500.0,0.00032876,3]
[359340737,1745945444551,-500.0,0.00032876,3]
[359340738,1745945444560,-400.0,0.00032876,3]
[359340739,1745945444569,-151.0,0.00032876,7]
[359340740,1745945444578,-151.0,0.00032876,7]
[359340742,1745945444587,-500.0,0.00032876,3]
[359340743,1745945444596,-151.0,0.00032876,7]
[359340745,1745945444605,-400.0,0.00032876,3]
[359340747,1745945444615,-1057.34,0.00032876,3]
[359340749,1745945444624,-502.34713975,0.00032876,3]
[359340751,1745945444634,-400.0,0.00032876,3]
[359340753,1745945444643,-400.0,0.00032876,3]
[359340755,1745945444652,-400.0,0.00032876,3]
[359340756,1745945444662,-500.0,0.00032876,3]
[359340759,1745945444671,-400.0,0.00032876,3]
[359340761,1745945444682,-400.0,0.00032876,3]
[359340763,1745945444692,-500.0,0.00032876,3]
[359340764,1745945444701,-400.0,0.00032876,3]
[359340766,1745945444710,-500.0,0.00032876,3]
[359340768,1745945444720,-400.0,0.00032876,3]
[359340770,1745945444730,-500.0,0.00032876,3]
[359340772,1745945444739,-400.0,0.00032876,3]
[359340774,1745945444748,-400.0,0.00032876,3]
[359340776,1745945444761,-500.0,0.00032876,3]
[359340778,1745945444771,-946.3,0.00032876,3]
[359340780,1745945444781,-716.61,0.00032876,3]
[359340782,1745945444790,-500.0,0.00032876,3]
[359340784,1745945444800,-400.0,0.00032876,3]
[359340786,1745945444811,-400.0,0.00032876,3]
[359340788,1745945444821,-500.0,0.00032876,3]
[359340790,1745945444831,-400.0,0.00032876,3]
[359340792,1745945444840,-500.0,0.00032876,3]
[359340794,1745945444850,-500.0,0.00032876,3]
[359340796,1745945444859,-400.0,0.00032876,3]
[359340798,1745945444869,-500.0,0.00032876,3]
[359340800,1745945444878,-500.0,0.00032876,3]
[359340802,1745945444888,-500.0,0.00032876,3]
[359340804,1745945444896,-500.0,0.00032876,3]
[359340806,1745945444906,-400.0,0.00032876,3]
[359340808,1745945444915,-500.0,0.00032876,3]
[359340810,1745945444924,-506.66851744,0.00032876,3]
[359340812,1745945444934,-500.0,0.00032876,3]
[359340814,1745945444943,-500.0,0.00032876,3]
[359340816,1745945444952,-500.0,0.00032876,3]
[359340818,1745945444962,-500.0,0.00032876,3]
[359340820,1745945444971,-429.2321733,0.00032876,3]
[359340822,1745945444980,-500.0,0.00032876,3]
[359340824,1745945444989,-500.0,0.00032876,3]
[359340826,1745945444998,-400.0,0.00032876,3]
[359340828,1745945445007,-400.0,0.00032876,3]
[359340830,1745945445017,-990.55,0.00032876,3]
[359340832,1745945445026,-500.0,0.00032876,3]
[359340834,1745945445037,-400.0,0.00032876,3]
[359340836,1745945445046,-400.0,0.00032876,3]
[359340838,1745945445055,-500.0,0.00032876,3]
[359340840,1745945445064,-400.0,0.00032876,3]
[359340841,1745945445074,-400.0,0.00032876,3]
[359340844,1745945445084,-226.07320203,0.00032876,3]
[359340845,1745945445093,-910.34,0.00032876,3]
[359340847,1745945445102,-500.0,0.00032876,3]
[359340849,1745945445111,-97.00402117,0.00032876,3]
[359340852,1745945445129,-302.99597883,0.00032876,3]
[359340854,1745945445138,-151.0,0.00032876,7]
[359340856,1745945445147,-465.10407521,0.00032876,3]
[359340858,1745945445157,-364.09303456,0.00032876,3]
[359340860,1745945445166,-151.0,0.00032876,7]
[359340862,1745945445176,-151.0,0.00032876,7]
[359340864,1745945445185,-255.365232,0.00032876,7]
[359340866,1745945445195,-500.0,0.00032876,3]
[359340868,1745945445204,-500.0,0.00032876,3]
[359340870,1745945445213,-500.0,0.00032876,3]
[359340872,1745945445223,-500.0,0.00032876,3]
[359340874,1745945445232,-366.3160969,0.00032876,3]
[359341041,1745945446847,-133.6839031,0.00032876,3]
[359341043,1745945446857,-1100.04,0.00032876,3]
[359341045,1745945446866,-494.64,0.00032876,3]
[359341047,1745945446875,-400.0,0.00032876,3]
[359341049,1745945446885,-151.0,0.00032876,7]
[359341051,1745945446895,-400.0,0.00032876,3]
[359341053,1745945446905,-500.0,0.00032876,3]
[359341056,1745945446914,-645.24,0.00032876,3]
[359341060,1745945446924,-400.0,0.00032876,3]
[359341063,1745945446933,-400.0,0.00032876,3]
[359341066,1745945446943,-500.0,0.00032876,3]
[359341068,1745945446952,-420.45,0.00032876,3]
[359341069,1745945446961,-151.0,0.00032876,7]
[359341071,1745945446971,-151.0,0.00032876,7]
[359341072,1745945446981,-501.40281923,0.00032876,3]
[359341074,1745945446990,-668.17,0.00032876,3]
[359341076,1745945447000,-437.14,0.00032876,3]
[359341078,1745945447010,-1270.23,0.00032876,3]
[359341080,1745945447019,-151.0,0.00032876,7]
[359341081,1745945447028,-151.0,0.00032876,7]
[359341082,1745945447036,-162.43234244,0.00032876,3]
[359341083,1745945447045,-400.0,0.00032876,3]
[359341084,1745945447054,-345.28398274,0.00032876,3]
[359342581,1745946062623,1277.0,0.000185,2]
[359342596,1745946585372,235.44485137,0.00027396,30]
[359342635,1745946631731,-522.40161482,0.00027297,2]
[359342637,1745946631742,-351.63552655,0.00027297,2]
[359342643,1745946631784,-125.96285863,0.00027297,2]
[359342645,1745946631793,-163.048207,0.00027397,2]
[359342647,1745946631803,-155.0,0.00030137,2]